[Event "18th Charleroi Open-B 2019"]
[Site "Charleroi"]
[Date "2019.07.30"]
[Round "5.1"]
[White "Lot, Diederik"]
[Black "Gorts, Sven"]
[Result "1/2-1/2"]
[ECO "E71"]
[WhiteElo "1931"]
[BlackElo "1934"]
[Annotator "NA"]
[PlyCount "72"]
[EventDate "2019.07.22"]
[EventType "swiss"]
[EventCountry "BEL"]
[SourceTitle "playchess.com"]
[Source "ChessBase"]
[SourceQuality "1"]
[TimeControl "40/5400+30:1800+30"]

1. d4 {[%emt 0:00:00]} Nf6 {[%emt 0:00:00]} 2. c4 {[%emt 1:31:00]} g6 {[%emt 0:00:00]} 3. Nc3 {[%emt 0:00:00]} Bg7 {[%emt 1:31:30]} 4. e4 {[%emt 0:00:00]} d6 {[%emt 0:00:00]} 5. h3 {[%emt 0:00:29]} O-O {[%emt 0:00:06]} 6. Bg5 {[%emt 0:00:17]} h6 {[%emt 1:32:54]} 7. Be3 {[%emt 0:00:23]} e5 {[%emt 0:01:00]} 8. d5 {[%emt 0:00:25]} Kh7 {[%emt 0:00:38]} 9. Bd3 {[%emt 1:32:56]} a5 {[%emt 0:00:53]} 10. Qd2 {[%emt 0:02:30]} Na6 {[%emt 0:00:31]} 11. Nge2 {[%emt 0:01:13]} Nb4 {[%emt 0:00:47]} 12. Bb1 {[%emt 0:01:02]} b6 {[%emt 0:08:40]} 13. g4 {[%emt 1:28:49]} Ng8 {[%emt 0:01:05]} 14. Ng3 {[%emt 0:02:22]} Bf6 {[%emt 0:03:15]} 15. a3 {[%emt 0:04:08]} Na6 {[%emt 0:00:05]} 16. Bc2 {[%emt 0:00:44]} Bd7 {[%emt 0:01:47]} 17. O-O-O {[%emt 0:03:17]} Bg5 {[%emt 0:13:00]} 18. h4 {[%emt 0:09:04]} Bxe3 {[%emt 0:00:20]} 19. Qxe3 {[%emt 0:00:09]} Bxg4 {[%emt 0:22:30]} 20. f3 {[%emt 0:06:54]} Bd7 {[%emt 0:06:05]} 21. Rdf1 {[%emt 0:02:16]} f6 {[%emt 0:04:34]} 22. f4 {[%emt 0:01:30]} Ne7 {[%emt 0:34:08]} 23. f5 {[%emt 0:03:52]} gxf5 {[%emt 0:06:00]} 24. Nxf5 {[%emt 0:01:28]} Nxf5 {[%emt 0:00:10]} 25. exf5 {[%emt 0:00:14]} Rg8 {[%emt 0:01:17]} 26. Rhg1 {[%emt 0:00:57]} Qe7 {[%emt 0:00:43]} 27. Ne4 {[%emt 0:07:47]} Rxg1 {[%emt 0:05:35]} 28. Rxg1 {[%emt 0:00:10]} Bxf5 {[%emt 0:02:00]} 29. Ng5+ {[%emt 0:00:28]} fxg5 {[%emt 0:00:53]} 30. Bxf5+ {[%emt 0:00:09]} Kg7 {[%emt 0:00:31]} 31. hxg5 {[%emt 0:00:59]} h5 {[%emt 0:00:43]} 32. Bc2 {[%emt 0:06:25]} Nc5 {[%emt 0:00:50]} 33. Qh3 {[%emt 0:41:51]} e4 {[%emt 0:01:31]} 34. Qxh5 {[%emt 0:02:49]} Rh8 {[%emt 0:00:08]} 35. Qg4 {[%emt 0:02:16]} Qe5 {[%emt 0:00:48]} 36. Qg3 {[%emt 0:07:15]} Qd4 {[%emt 0:02:44]} 1/2-1/2

[Event "18th Charleroi Open-B 2019"]
[Site "Charleroi"]
[Date "2019.07.30"]
[Round "5.3"]
[White "Heymans, Berwout"]
[Black "Leclere, Jean-Yves"]
[Result "1-0"]
[ECO "E94"]
[WhiteElo "1889"]
[BlackElo "1660"]
[Annotator "NA"]
[PlyCount "143"]
[EventDate "2019.07.22"]
[EventType "swiss"]
[EventCountry "BEL"]
[SourceTitle "playchess.com"]
[Source "ChessBase"]
[SourceQuality "1"]
[TimeControl "40/5400+30:1800+30"]

1. c4 {[%emt 0:00:00]} Nf6 {[%emt 0:00:00]} 2. Nc3 {[%emt 0:00:00]} g6 {[%emt 0:00:17]} 3. e4 {[%emt 0:00:00]} d6 {[%emt 0:00:25]} 4. d4 {[%emt 0:00:00]} Bg7 {[%emt 0:00:21]} 5. Nf3 {[%emt 0:00:10]} O-O {[%emt 0:00:06]} 6. Be2 {[%emt 0:00:05]} e5 {[%emt 0:00:42]} 7. d5 {[%emt 0:00:05]} Na6 {[%emt 0:06:08]} 8. O-O {[%emt 0:00:37]} Nc5 {[%emt 0:00:16]} 9. Qc2 {[%emt 0:00:06]} a5 {[%emt 0:05:36]} 10. Bg5 {[%emt 0:00:19]} h6 {[%emt 0:00:54]} 11. Be3 {[%emt 0:00:50]} Na6 {[%emt 0:01:50]} 12. Nd2 {[%emt 0:02:42]} Ng4 {[%emt 0:01:54]} 13. Bxg4 {[%emt 0:00:55]} Bxg4 {[%emt 0:00:02]} 14. f3 {[%emt 0:01:39]} Bd7 {[%emt 0:00:44]} 15. a3 {[%emt 0:04:14]} Qe7 {[%emt 0:13:01]} 16. Rab1 {[%emt 0:06:40]} f5 {[%emt 0:04:53]} 17. b4 {[%emt 0:02:05]} axb4 {[%emt 0:00:48]} 18. axb4 {[%emt 0:00:09]} f4 {[%emt 0:03:36]} 19. Bf2 {[%emt 0:00:14]} Qg5 {[%emt 0:00:54]} 20. Kh1 {[%emt 0:03:07]} b6 {[%emt 0:03:37]} 21. Ne2 {[%emt 0:06:28]} h5 {[%emt 0:02:35]} 22. c5 {[%emt 0:04:21]} bxc5 {[%emt 0:01:49]} 23. bxc5 {[%emt 0:01:45]} Rfb8 {[%emt 0:03:07]} 24. Rxb8+ {[%emt 0:08:11]} Rxb8 {[%emt 0:00:30]} 25. c6 {[%emt 0:09:35]} Bc8 {[%emt 0:13:41]} 26. Rb1 {[%emt 0:02:11]} Ra8 {[%emt 0:02:50]} 27. Nb3 {[%emt 0:04:48]} Bf8 {[%emt 0:03:32]} 28. Qc3 {[%emt 0:04:39]} Qe7 {[%emt 0:03:39]} 29. Qc4 {[%emt 0:08:08]} Kh7 {[%emt 0:02:01]} 30. Nec1 {[%emt 0:02:53]} g5 {[%emt 0:01:01]} 31. Ra1 {[%emt 0:03:43]} g4 {[%emt 0:01:02]} 32. Nd3 {[%emt 0:07:44]} gxf3 {[%emt 0:03:32]} 33. gxf3 {[%emt 0:00:43]} Rb8 {[%emt 0:01:30]} 34. Ba7 {[%emt 0:03:10]} Ra8 {[%emt 0:01:47]} 35. Bf2 {[%emt 0:01:37]} Rb8 {[%emt 0:00:22]} 36. Ba7 {[%emt 0:01:37]} Ra8 {[%emt 0:00:18]} 37. Rxa6 {[%emt 0:00:40]} Bxa6 {[%emt 0:00:27]} 38. Qxa6 {[%emt 0:00:07]} Bh6 {[%emt 0:03:15]} 39. Qb7 {[%emt 0:00:46]} Rg8 {[%emt 0:01:14]} 40. Bf2 {[%emt 0:01:45]} Qg7 {[%emt 0:00:49]} 41. Ne1 {[%emt 0:30:42]} Bg5 {[%emt 0:31:50]} 42. Nc1 {[%emt 0:05:44]} h4 {[%emt 0:01:29]} 43. Ncd3 {[%emt 0:00:00]} h3 {[%emt 0:00:00]} 44. Qa7 {[%emt 0:00:00]} Bd8 {[%emt 0:00:00]} 45. Qa6 {[%emt 0:00:00]} Bh4 {[%emt 0:00:00]} 46. Qa2 {[%emt 0:00:00]} Bd8 {[%emt 0:00:00]} 47. Qe2 {[%emt 0:00:00]} Qh6 {[%emt 0:00:00]} 48. Qf1 {[%emt 0:00:00]} Qh5 {[%emt 0:00:00]} 49. Bg1 {[%emt 0:00:00]} Rg6 {[%emt 0:00:00]} 50. Nf2 {[%emt 0:00:00]} Rh6 {[%emt 0:00:00]} 51. Ng4 {[%emt 0:00:00]} Rg6 {[%emt 0:00:00]} 52. Nd3 {[%emt 0:00:00]} Kg7 {[%emt 0:00:00]} 53. Ndf2 {[%emt 0:00:00]} Bh4 {[%emt 0:02:31]} 54. Qxh3 {[%emt 0:00:51]} Qg5 {[%emt 0:01:07]} 55. Qf1 {[%emt 0:01:08]} Qd8 {[%emt 0:02:38]} 56. Qb1 {[%emt 0:01:55]} Qh8 {[%emt 0:00:45]} 57. Qb7 {[%emt 0:01:52]} Bd8 {[%emt 0:00:12]} 58. Qc8 {[%emt 0:01:32]} Qe8 {[%emt 0:02:09]} 59. Nd3 {[%emt 0:01:23]} Kf8 {[%emt 0:02:13]} 60. Qf5+ {[%emt 0:00:56]} Kg8 {[%emt 0:01:26]} 61. Nb4 {[%emt 0:01:53]} Kh8 {[%emt 0:02:09]} 62. Ba7 {[%emt 0:01:02]} Rg7 {[%emt 0:01:37]} 63. Qc8 {[%emt 0:01:25]} Qe7 {[%emt 0:01:50]} 64. Bf2 {[%emt 0:01:40]} Rg8 {[%emt 0:01:00]} 65. Qf5 {[%emt 0:00:54]} Rg7 {[%emt 0:00:58]} 66. Nd3 {[%emt 0:00:28]} Qe8 {[%emt 0:01:55]} 67. Be1 {[%emt 0:00:24]} Rf7 {[%emt 0:00:26]} 68. Qh5+ {[%emt 0:00:16]} Kg7 {[%emt 0:00:56]} 69. Nh6 {[%emt 0:00:36]} Rf8 {[%emt 0:00:53]} 70. Nf5+ {[%emt 0:00:18]} Kg8 {[%emt 0:00:38]} 71. Qg4+ {[%emt 0:00:17]} Kh8 {[%emt 0:00:39]} 72. Qg7# {[%emt 0:01:56]} 1-0

[Event "18th Charleroi Open-B 2019"]
[Site "Charleroi"]
[Date "2019.07.31"]
[Round "6.1"]
[White "Timmermans, Daniel"]
[Black "Schuermans, Robert"]
[Result "0-1"]
[ECO "D07"]
[WhiteElo "1883"]
[BlackElo "1986"]
[Annotator "NA RC"]
[PlyCount "75"]
[EventDate "2019.07.22"]
[EventType "swiss"]
[EventCountry "BEL"]
[SourceTitle "playchess.com"]
[Source "ChessBase"]
[SourceQuality "1"]
[TimeControl "40/5400+30:1800+30"]

1. d4 {[%emt 0:00:00]} d5 {[%emt 0:00:15]} 2. c4 {[%emt 0:01:33]} Nc6 {[%emt 0:00:36]} 3. Nc3 {[%emt 0:00:28]} dxc4 {[%emt 0:02:25]} 4. d5 {[%emt 0:01:02]} Ne5 {[%emt 0:02:43]} 5. f4 {[%emt 0:00:39]} Ng4 {[%emt 0:06:37]} 6. h3 {[%emt 0:01:33]} N4f6 {[%emt 0:01:47]} 7. e4 {[%emt 0:00:21]} e6 {[%emt 0:03:23]} 8. Bxc4 {[%emt 0:00:42]} exd5 {[%emt 0:01:32]} 9. exd5 {[%emt 0:02:54]} Bc5 {[%emt 0:05:01]} 10. Nf3 {[%emt 0:01:17]} Ne7 {[%emt 0:05:04]} 11. b4 {[%emt 0:11:14]} Bxb4 {[%emt 0:16:42]} 12. Qa4+ {[%emt 0:08:22]} Nc6 {[%emt 0:00:21]} 13. O-O {[%emt 0:22:00]} Bxc3 {[%emt 0:05:15]} 14. dxc6 {[%emt 0:03:18]} O-O {[%emt 0:04:59]} 15. Rb1 {[%emt 0:01:35]} bxc6 {[%emt 0:02:08]} 16. Ba3 {[%emt 0:05:14]} Bd4+ {[%emt 0:06:02]} 17. Kh1 {[%emt 0:00:27]} c5 {[%emt 0:00:45]} 18. Rbd1 {[%emt 0:19:29]} Ne4 {[%emt 0:10:39]} 19. Nxd4 {[%emt 0:04:53]} Ng3+ {[%emt 0:06:13]} 20. Kg1 {[%emt 0:00:16]} cxd4 {[%emt 0:04:15]} 21. Rfe1 {[%emt 0:02:55]} Bd7 {[%emt 0:03:18]} 22. Qb3 {[%emt 0:00:27]} Nf5 {[%emt 0:00:24]} 23. Bxf8 {[%emt 0:00:18]} Qxf8 {[%emt 0:00:10]} 24. Re5 {[%emt 0:02:40]} c5 {[%emt 0:02:10]} 25. Qa3 {[%emt 0:02:29]} Nd6 {[%emt 0:03:06]} 26. Bd5 {[%emt 0:00:18]} Nb5 {[%emt 0:01:17]} 27. Qa5 {[%emt 0:02:42]} Rb8 {[%emt 0:01:38]} 28. Rde1 {[%emt 0:00:52]} Qd6 {[%emt 0:01:07]} 29. Bc4 {[%emt 0:00:45]} d3 {[%emt 0:01:21]} 30. Rd5 {[%emt 0:01:00]} Qc6 {[%emt 0:02:51]} 31. Bxb5 {[%emt 0:01:51]} Qxb5 {[%emt 0:00:14]} 32. Qxb5 {[%emt 0:01:03]} Bxb5 {[%emt 0:00:08]} 33. Rxc5 {[%emt 0:00:02]} Ba4 {[%emt 0:00:31]} 34. Rec1 {[%emt 0:00:36]} d2 {[%emt 0:00:58]} 35. Rc8+ {[%emt 0:00:06]} Be8 {[%emt 0:00:06]} 36. Rxe8+ {[%emt 0:00:13]} Rxe8 {[%emt 0:00:02]} 37. Rd1 {[%emt 0:00:03]} Re1+ {[%emt 0:00:10]} 38. Kf2 {[%emt 0:03:23]} 0-1

[Event "18th Charleroi Open-B 2019"]
[Site "Charleroi"]
[Date "2019.07.31"]
[Round "6.3"]
[White "Henrotte, Corentin"]
[Black "Lot, Diederik"]
[Result "1/2-1/2"]
[ECO "D00"]
[WhiteElo "1851"]
[BlackElo "1931"]
[Annotator "NA RC"]
[PlyCount "88"]
[EventDate "2019.07.22"]
[EventType "swiss"]
[EventCountry "BEL"]
[SourceTitle "playchess.com"]
[Source "ChessBase"]
[SourceQuality "1"]
[TimeControl "40/5400+30:1800+30"]

1. d4 {[%emt 0:00:00]} d5 {[%emt 0:00:00]} 2. Nc3 {[%emt 0:00:00]} c6 {[%emt 0:01:04]} 3. Bf4 {[%emt 0:00:00]} Nf6 {[%emt 0:01:33]} 4. e3 {[%emt 0:00:14]} g6 {[%emt 0:03:18]} 5. Bd3 {[%emt 0:01:23]} Bg7 {[%emt 0:00:14]} 6. Nf3 {[%emt 0:01:37]} O-O {[%emt 0:01:25]} 7. h4 {[%emt 0:08:44]} h5 {[%emt 0:02:13]} 8. Qd2 {[%emt 0:05:36]} Nbd7 {[%emt 0:06:21]} 9. O-O-O {[%emt 0:02:07]} Qa5 {[%emt 0:02:44]} 10. Kb1 {[%emt 0:01:04]} c5 {[%emt 0:01:51]} 11. Nxd5 {[%emt 0:06:06]} Qa4 {[%emt 0:02:09]} 12. Nxe7+ {[%emt 0:00:25]} Kh8 {[%emt 0:00:06]} 13. c3 {[%emt 0:02:24]} b5 {[%emt 0:02:16]} 14. Qc2 {[%emt 0:25:56]} Qxc2+ {[%emt 0:07:29]} 15. Bxc2 {[%emt 0:00:24]} Bb7 {[%emt 0:00:29]} 16. d5 {[%emt 0:03:19]} Rfe8 {[%emt 0:03:00]} 17. d6 {[%emt 0:00:52]} Bf8 {[%emt 0:07:54]} 18. Ng5 {[%emt 0:08:02]} Kg7 {[%emt 0:05:42]} 19. f3 {[%emt 0:02:52]} Bxe7 {[%emt 0:02:34]} 20. dxe7 {[%emt 0:00:06]} Rxe7 {[%emt 0:00:25]} 21. e4 {[%emt 0:01:24]} Ne5 {[%emt 0:08:15]} 22. Nh3 {[%emt 0:05:26]} Nfd7 {[%emt 0:03:40]} 23. Rhe1 {[%emt 0:01:39]} c4 {[%emt 0:02:03]} 24. Rd2 {[%emt 0:03:00]} Nc5 {[%emt 0:35:15]} 25. Nf2 {[%emt 0:00:47]} a5 {[%emt 0:02:18]} 26. Bxe5+ {[%emt 0:03:20]} Rxe5 {[%emt 0:00:21]} 27. f4 {[%emt 0:04:13]} Re7 {[%emt 0:03:04]} 28. g3 {[%emt 0:00:29]} b4 {[%emt 0:08:20]} 29. e5 {[%emt 0:02:17]} Rb8 {[%emt 0:02:10]} 30. cxb4 {[%emt 0:00:55]} axb4 {[%emt 0:00:17]} 31. Ne4 {[%emt 0:01:09]} Bxe4 {[%emt 0:14:46]} 32. Bxe4 {[%emt 0:00:12]} c3 {[%emt 0:01:01]} 33. Rd4 {[%emt 0:04:04]} b3 {[%emt 0:01:51]} 34. a4 {[%emt 0:05:03]} c2+ {[%emt 0:02:53]} 35. Kc1 {[%emt 0:01:00]} Ra7 {[%emt 0:00:21]} 36. Bc6 {[%emt 0:00:17]} Rb6 {[%emt 0:00:22]} 37. Bd5 {[%emt 0:01:30]} Rxa4 {[%emt 0:01:20]} 38. Rxa4 {[%emt 0:00:23]} Nxa4 {[%emt 0:00:38]} 39. Re4 {[%emt 0:00:32]} Nc5 {[%emt 0:00:58]} 40. Re3 {[%emt 0:00:29]} Kf8 {[%emt 0:04:24]} 41. Rc3 {[%emt 0:30:37]} Rb5 {[%emt 0:30:21]} 42. Bc4 {[%emt 0:00:25]} Rb4 {[%emt 0:00:54]} 43. Bd5 {[%emt 0:00:00]} Rb5 {[%emt 0:00:00]} 44. Bc4 {[%emt 0:00:00]} Rb4 {[%emt 0:00:00]} 1/2-1/2

[Event "18th Charleroi Open-B 2019"]
[Site "Charleroi"]
[Date "2019.08.01"]
[Round "7.1"]
[White "Schuermans, Robert"]
[Black "Gorts, Sven"]
[Result "1/2-1/2"]
[ECO "B77"]
[WhiteElo "1986"]
[BlackElo "1934"]
[Annotator "NA"]
[PlyCount "44"]
[EventDate "2019.07.22"]
[EventType "swiss"]
[EventCountry "BEL"]
[SourceTitle "playchess.com"]
[Source "ChessBase"]
[SourceQuality "1"]
[TimeControl "40/5400+30:1800+30"]

1. e4 {[%emt 0:00:00]} c5 {[%emt 0:01:38]} 2. Nf3 {[%emt 0:00:20]} d6 {[%emt 0:00:04]} 3. d4 {[%emt 0:00:55]} cxd4 {[%emt 0:00:05]} 4. Nxd4 {[%emt 0:00:14]} Nf6 {[%emt 0:00:03]} 5. Nc3 {[%emt 0:00:23]} g6 {[%emt 0:00:11]} 6. Be3 {[%emt 0:02:36]} Bg7 {[%emt 0:00:14]} 7. f3 {[%emt 0:00:52]} O-O {[%emt 0:00:17]} 8. Qd2 {[%emt 0:00:37]} Nc6 {[%emt 0:00:16]} 9. Bc4 {[%emt 0:01:15]} Bd7 {[%emt 0:00:24]} 10. h4 {[%emt 0:02:23]} Ne5 {[%emt 0:00:16]} 11. Bb3 {[%emt 0:00:18]} Rc8 {[%emt 0:00:04]} 12. h5 {[%emt 0:07:31]} Nc4 {[%emt 0:00:07]} 13. Bxc4 {[%emt 0:01:39]} Rxc4 {[%emt 0:00:06]} 14. hxg6 {[%emt 0:01:05]} fxg6 {[%emt 0:00:07]} 15. Nde2 {[%emt 0:05:10]} Qe8 {[%emt 0:02:36]} 16. Bh6 {[%emt 0:05:03]} Bxh6 {[%emt 0:03:40]} 17. Qxh6 {[%emt 0:03:23]} Qf7 {[%emt 0:00:19]} 18. O-O-O {[%emt 0:04:05]} Rfc8 {[%emt 0:00:27]} 19. Rd4 {[%emt 0:04:27]} b5 {[%emt 0:02:45]} 20. Rxc4 {[%emt 0:04:39]} Rxc4 {[%emt 0:00:10]} 21. Qe3 {[%emt 0:10:15]} b4 {[%emt 0:04:31]} 22. Nd1 {[%emt 0:02:51]} Rc5 {[%emt 0:03:56]} 1/2-1/2

[Event "18th Charleroi Open-B 2019"]
[Site "Charleroi"]
[Date "2019.08.01"]
[Round "7.3"]
[White "Manet, Eric"]
[Black "Timmermans, Daniel"]
[Result "0-1"]
[ECO "B42"]
[WhiteElo "1855"]
[BlackElo "1883"]
[Annotator "NA"]
[PlyCount "86"]
[EventDate "2019.07.22"]
[EventType "swiss"]
[EventCountry "BEL"]
[SourceTitle "playchess.com"]
[Source "ChessBase"]
[SourceQuality "1"]
[TimeControl "40/5400+30:1800+30"]

1. e4 {[%emt 0:00:00]} c5 {[%emt 0:04:08]} 2. Nf3 {[%emt 0:00:17]} e6 {[%emt 0:00:04]} 3. d4 {[%emt 0:00:53]} cxd4 {[%emt 0:00:08]} 4. Nxd4 {[%emt 0:00:06]} a6 {[%emt 0:01:02]} 5. Bd3 {[%emt 0:02:40]} Qc7 {[%emt 0:01:55]} 6. O-O {[%emt 0:00:26]} Bc5 {[%emt 0:10:45]} 7. Nb3 {[%emt 0:02:00]} Ba7 {[%emt 0:04:11]} 8. Qe2 {[%emt 0:02:39]} Nc6 {[%emt 0:01:20]} 9. Be3 {[%emt 0:03:40]} Bxe3 {[%emt 0:15:08]} 10. Qxe3 {[%emt 0:00:18]} Nf6 {[%emt 0:00:18]} 11. Qe2 {[%emt 0:03:40]} O-O {[%emt 0:01:50]} 12. Nc3 {[%emt 0:01:04]} b5 {[%emt 0:04:22]} 13. a3 {[%emt 0:05:00]} d6 {[%emt 0:02:55]} 14. Kh1 {[%emt 0:08:05]} d5 {[%emt 0:06:28]} 15. exd5 {[%emt 0:06:30]} exd5 {[%emt 0:00:02]} 16. Qd2 {[%emt 0:01:56]} Ne5 {[%emt 0:17:57]} 17. f4 {[%emt 0:04:10]} Nc4 {[%emt 0:02:08]} 18. Bxc4 {[%emt 0:03:35]} dxc4 {[%emt 0:00:17]} 19. Nd4 {[%emt 0:00:46]} Rd8 {[%emt 0:03:15]} 20. Nce2 {[%emt 0:01:26]} Qc5 {[%emt 0:01:50]} 21. c3 {[%emt 0:05:08]} Bb7 {[%emt 0:05:36]} 22. Qe3 {[%emt 0:06:38]} Qd5 {[%emt 0:05:34]} 23. Qh3 {[%emt 0:00:31]} Re8 {[%emt 0:01:50]} 24. Rad1 {[%emt 0:00:35]} Re3 {[%emt 0:02:17]} 25. Rf3 {[%emt 0:01:58]} Rxe2 {[%emt 0:01:11]} 26. Rg3 {[%emt 0:08:11]} Rae8 {[%emt 0:01:19]} 27. Rg1 {[%emt 0:01:59]} Qh5 {[%emt 0:04:43]} 28. Qxh5 {[%emt 0:03:24]} Nxh5 {[%emt 0:00:03]} 29. Nxe2 {[%emt 0:00:07]} Rxe2 {[%emt 0:00:08]} 30. Rg5 {[%emt 0:02:33]} Nxf4 {[%emt 0:00:52]} 31. Rd1 {[%emt 0:01:16]} h6 {[%emt 0:00:39]} 32. Rg3 {[%emt 0:02:09]} Nxg2 {[%emt 0:00:22]} 33. Kg1 {[%emt 0:00:16]} Rxb2 {[%emt 0:00:51]} 34. Rd8+ {[%emt 0:00:23]} Kh7 {[%emt 0:00:07]} 35. Rd7 {[%emt 0:00:11]} Rb1+ {[%emt 0:01:18]} 36. Kf2 {[%emt 0:00:06]} Rb2+ {[%emt 0:00:01]} 37. Kg1 {[%emt 0:00:05]} Be4 {[%emt 0:00:57]} 38. Rxf7 {[%emt 0:00:11]} Bg6 {[%emt 0:00:02]} 39. Ra7 {[%emt 0:00:50]} Nf4 {[%emt 0:00:16]} 40. Kf1 {[%emt 0:01:19]} Bd3+ {[%emt 0:00:30]} 41. Ke1 {[%emt 0:30:20]} Re2+ {[%emt 0:02:25]} 42. Kd1 {[%emt 0:00:00]} Bc2+ {[%emt 0:00:13]} 43. Kc1 {[%emt 0:00:00]} Nd3+ {[%emt 0:30:13]} 0-1

[Event "18th Charleroi Open-B 2019"]
[Site "Charleroi"]
[Date "2019.08.01"]
[Round "7.7"]
[White "Goormachtigh, Laurens"]
[Black "De Bock, Thijs"]
[Result "*"]
[ECO "B76"]
[WhiteElo "1840"]
[BlackElo "1870"]
[Annotator "NA"]
[PlyCount "24"]
[EventDate "2019.07.22"]
[EventType "swiss"]
[EventCountry "BEL"]
[SourceTitle "playchess.com"]
[Source "ChessBase"]
[SourceQuality "1"]
[TimeControl "40/5400+30:1800+30"]

1. e4 {[%emt 0:00:00]} c5 {[%emt 0:00:00]} 2. Nf3 {[%emt 0:00:00]} d6 {[%emt 0:00:00]} 3. d4 {[%emt 0:00:00]} cxd4 {[%emt 0:00:00]} 4. Nxd4 {[%emt 0:00:00]} Nf6 {[%emt 0:00:00]} 5. Nc3 {[%emt 0:00:00]} g6 {[%emt 0:00:03]} 6. f3 {[%emt 0:01:19]} Bg7 {[%emt 0:00:07]} 7. Be3 {[%emt 0:00:06]} O-O {[%emt 0:00:04]} 8. Qd2 {[%emt 0:00:04]} Nc6 {[%emt 0:00:02]} 9. O-O-O {[%emt 0:00:26]} d5 {[%emt 0:00:04]} 10. Qe1 {[%emt 0:00:42]} e5 {[%emt 0:00:04]} 11. Nxc6 {[%emt 0:00:30]} bxc6 {[%emt 0:00:03]} 12. exd5 {[%emt 0:00:13]} Nxd5 {[%emt 0:00:06]} *

[Event "18th Charleroi Open-B 2019"]
[Site "Charleroi"]
[Date "2019.08.02"]
[Round "8.1"]
[White "Gorts, Sven"]
[Black "Halfaoui, Eddine"]
[Result "1/2-1/2"]
[ECO "A11"]
[WhiteElo "1934"]
[BlackElo "1990"]
[Annotator "NA"]
[PlyCount "89"]
[EventDate "2019.07.22"]
[EventType "swiss"]
[EventCountry "BEL"]
[SourceTitle "playchess.com"]
[Source "ChessBase"]
[SourceQuality "1"]
[TimeControl "40/5400+30:1800+30"]

1. c4 {[%emt 0:00:00]} c6 {[%emt 0:03:49]} 2. Nf3 {[%emt 0:01:27]} d5 {[%emt 0:00:44]} 3. e3 {[%emt 0:00:48]} Nf6 {[%emt 0:00:11]} 4. Qc2 {[%emt 0:01:05]} e6 {[%emt 0:00:19]} 5. Nc3 {[%emt 0:02:13]} Nbd7 {[%emt 0:01:04]} 6. a3 {[%emt 0:04:02]} a5 {[%emt 0:02:17]} 7. b3 {[%emt 0:05:07]} Be7 {[%emt 0:00:42]} 8. Bb2 {[%emt 0:01:08]} O-O {[%emt 0:03:12]} 9. d4 {[%emt 0:06:58]} Re8 {[%emt 0:01:22]} 10. Bd3 {[%emt 0:01:29]} c5 {[%emt 0:07:56]} 11. cxd5 {[%emt 0:03:45]} exd5 {[%emt 0:00:43]} 12. Bb5 {[%emt 0:08:28]} Rf8 {[%emt 0:02:05]} 13. h4 {[%emt 0:01:11]} cxd4 {[%emt 0:00:12]} 14. Nxd4 {[%emt 0:00:43]} Nc5 {[%emt 0:00:44]} 15. h5 {[%emt 0:10:12]} h6 {[%emt 0:02:59]} 16. f3 {[%emt 0:01:58]} Bd6 {[%emt 0:03:15]} 17. O-O-O {[%emt 0:02:06]} Qb6 {[%emt 0:14:24]} 18. g4 {[%emt 0:04:27]} Ne6 {[%emt 0:02:56]} 19. Qd2 {[%emt 0:13:27]} Nxd4 {[%emt 0:01:03]} 20. exd4 {[%emt 0:00:07]} Qc7 {[%emt 0:00:58]} 21. Kb1 {[%emt 0:00:04]} Bf4 {[%emt 0:01:12]} 22. Qd3 {[%emt 0:00:45]} Bd7 {[%emt 0:00:24]} 23. Bxd7 {[%emt 0:30:00]} Qxd7 {[%emt 0:48:59]} 24. Ne2 {[%emt 0:00:00]} Bd6 {[%emt 0:00:00]} 25. g5 {[%emt 0:00:00]} hxg5 {[%emt 0:00:00]} 26. h6 {[%emt 0:00:00]} g6 {[%emt 0:00:00]} 27. Bc1 {[%emt 0:00:00]} Nh7 {[%emt 0:00:00]} 28. Rdg1 {[%emt 0:00:00]} Be7 {[%emt 0:00:00]} 29. f4 {[%emt 0:00:00]} g4 {[%emt 0:00:00]} 30. Ka2 {[%emt 0:00:00]} f5 {[%emt 0:00:00]} 31. Rxg4 {[%emt 0:00:00]} Ra6 {[%emt 0:00:00]} 32. Rg2 {[%emt 0:00:00]} Rc8 {[%emt 0:00:00]} 33. Bb2 {[%emt 0:00:00]} Qd6 {[%emt 0:00:00]} 34. Qxf5 {[%emt 0:00:00]} Rf8 {[%emt 0:00:00]} 35. Qd3 {[%emt 0:00:00]} Kh8 {[%emt 0:00:00]} 36. Rhg1 {[%emt 0:00:00]} Rg8 {[%emt 0:00:00]} 37. Qe3 {[%emt 0:00:00]} Qf6 {[%emt 0:00:00]} 38. f5 {[%emt 0:00:00]} g5 {[%emt 0:00:00]} 39. Qe5 {[%emt 0:00:00]} Rf8 {[%emt 0:00:00]} 40. Rf1 {[%emt 0:02:52]} Rd8 {[%emt 0:00:00]} 41. Qc7 {[%emt 0:36:08]} Qd6 {[%emt 0:14:20]} 42. Qc1 {[%emt 0:00:00]} Rc6 {[%emt 0:04:44]} 43. Qd1 {[%emt 0:00:00]} Rdc8 {[%emt 0:00:31]} 44. Ng3 {[%emt 0:00:00]} Nf6 {[%emt 0:03:12]} 45. Rf3 {[%emt 0:00:00]} 1/2-1/2

[Event "18th Charleroi Open-B 2019"]
[Site "Charleroi"]
[Date "2019.08.02"]
[Round "8.3"]
[White "Yoro, Samuel"]
[Black "Paul, Jean-Bernard"]
[Result "0-1"]
[ECO "A57"]
[WhiteElo "1744"]
[BlackElo "1937"]
[Annotator "NA"]
[PlyCount "42"]
[EventDate "2019.07.22"]
[EventType "swiss"]
[EventCountry "BEL"]
[SourceTitle "playchess.com"]
[Source "ChessBase"]
[SourceQuality "1"]
[TimeControl "40/5400+30:1800+30"]

1. d4 {[%emt 0:00:00]} Nf6 {[%emt 1:30:30]} 2. c4 {[%emt 0:00:00]} c5 {[%emt 0:00:04]} 3. d5 {[%emt 0:00:00]} b5 {[%emt 0:00:05]} 4. b3 {[%emt 0:00:45]} bxc4 {[%emt 0:03:49]} 5. bxc4 {[%emt 0:00:06]} g6 {[%emt 0:01:56]} 6. Nc3 {[%emt 0:06:51]} Bg7 {[%emt 0:00:57]} 7. Bd2 {[%emt 0:00:54]} O-O {[%emt 0:02:48]} 8. f4 {[%emt 0:03:59]} e6 {[%emt 0:08:06]} 9. Rb1 {[%emt 0:11:37]} exd5 {[%emt 0:03:45]} 10. cxd5 {[%emt 0:02:49]} Re8 {[%emt 0:01:13]} 11. g3 {[%emt 0:11:35]} d6 {[%emt 1:12:36]} 12. Bg2 {[%emt 0:02:23]} Bf5 {[%emt 0:00:00]} 13. Rb7 {[%emt 0:10:53]} Bc8 {[%emt 0:00:00]} 14. Rb3 {[%emt 0:03:10]} Nbd7 {[%emt 0:00:00]} 15. h3 {[%emt 0:08:49]} Nb6 {[%emt 0:00:00]} 16. a4 {[%emt 0:01:52]} Nc4 {[%emt 0:00:00]} 17. g4 {[%emt 0:06:13]} Ba6 {[%emt 0:00:00]} 18. Qc1 {[%emt 0:02:46]} Rb8 {[%emt 0:00:00]} 19. Nb5 {[%emt 0:05:30]} Nxd2 {[%emt 0:00:00]} 20. Qxd2 {[%emt 0:00:04]} Ne4 {[%emt 0:00:00]} 21. Qd3 {[%emt 0:01:56]} Qh4+ {[%emt 0:00:00] Qd1} 0-1